[Event "Klubbmästerskap 2025 Torsdagar"]
[Site "Linköping, Sweden"]
[Date "2025.01.23"]
[Round "2.7"]
[White "Carlsson, Ingvar"]
[Black "Rosenbecker, Daniel"]
[Result "0-1"]
[TimeControl "90 min + 30 sec/move"]
[BlackTitle "CM"]
[WhiteElo "1996"]
[BlackElo "2110"]

1. e4 {[%clk 01:30:52]} {[%emt 00:00:07]} e5 {[%clk 01:30:54]} {[%emt
00:00:08]} 2. Nf3 {[%clk 01:31:07]} {[%emt 00:00:15]} Nc6 {[%clk 01:31:20]}
{[%emt 00:00:05]} 3. Bc4 {[%clk 01:31:21]} {[%emt 00:00:15]} Nf6 {[%clk
01:31:45]} {[%emt 00:00:04]} 4. Ng5 {[%clk 01:31:29]} {[%emt 00:00:22]} d5
{[%clk 01:32:09]} {[%emt 00:00:07]} 5. exd5 {[%clk 01:31:53]} {[%emt 00:00:06]}
Na5 {[%clk 01:32:36]} {[%emt 00:00:04]} 6. Bb5+ {[%clk 01:32:13]} {[%emt
00:00:09]} c6 {[%clk 01:33:02]} {[%emt 00:00:04]} 7. dxc6 {[%clk 01:32:31]}
{[%emt 00:00:11]} bxc6 {[%clk 01:33:29]} {[%emt 00:00:04]} 8. Be2 {[%clk
01:32:44]} {[%emt 00:00:16]} h6 {[%clk 01:33:52]} {[%emt 00:00:07]} 9. Nh3
{[%clk 01:33:03]} {[%emt 00:00:11]} Bc5 {[%clk 01:33:43]} {[%emt 00:00:40]} 10.
d3 {[%clk 01:33:11]} {[%emt 00:00:21]} O-O {[%clk 01:32:34]} {[%emt 00:01:40]}
11. O-O {[%clk 01:32:13]} {[%emt 00:01:27]} Nb7 {[%clk 01:32:59]} {[%emt
00:00:06]} 12. Nc3 {[%clk 01:30:59]} {[%emt 00:01:42]} Nd6 {[%clk 01:33:04]}
{[%emt 00:00:26]} 13. Kh1 {[%clk 01:29:33]} {[%emt 00:01:56]} Bxh3 {[%clk
01:33:29]} {[%emt 00:00:06]} 14. gxh3 {[%clk 01:29:56]} {[%emt 00:00:06]} Bd4
{[%clk 01:32:37]} {[%emt 00:01:23]} 15. Bf3 {[%clk 01:27:23]} {[%emt 00:03:02]}
Nf5 {[%clk 01:32:29]} {[%emt 00:00:38]} 16. Ne2 {[%clk 01:15:02]} {[%emt
00:12:50]} Bb6 {[%clk 01:26:00]} {[%emt 00:07:00]} 17. Ng3 {[%clk 01:02:16]}
{[%emt 00:13:16]} Nh4 {[%clk 01:26:06]} {[%emt 00:00:23]} 18. Bxc6 {[%clk
00:45:15]} {[%emt 00:17:31]} Rc8 {[%clk 01:26:31]} {[%emt 00:00:06]} 19. Bg2
{[%clk 00:45:30]} {[%emt 00:00:15]} Nd5 {[%clk 01:21:21]} {[%emt 00:05:40]} 20.
c3 {[%clk 00:28:54]} {[%emt 00:17:06]} Nf4 {[%clk 01:17:32]} {[%emt 00:04:20]}
21. Bxf4 {[%clk 00:28:24]} {[%emt 00:01:00]} exf4 {[%clk 01:17:58]} {[%emt
00:00:04]} 22. Ne4 {[%clk 00:28:12]} {[%emt 00:00:41]} Re8 {[%clk 00:27:05]}
{[%emt 00:51:23]} 23. f3 {[%clk 00:05:10]} {[%emt 00:23:32]} f5 {[%clk
00:23:13]} {[%emt 00:04:23]} 24. Nd2 {[%clk 00:01:58]} {[%emt 00:03:42]} Qg5
{[%clk 00:23:16]} {[%emt 00:00:26]} 25. Rg1 {[%clk 00:00:52]} {[%emt 00:01:36]}
Bxg1 {[%clk 00:23:27]} {[%emt 00:00:18]} 26. Qxg1 {[%clk 00:01:18]} {[%emt
00:00:04]} Re2 {[%clk 00:23:47]} {[%emt 00:00:09]} 27. Ne4 {[%clk 00:00:37]}
{[%emt 00:01:12]} fxe4 {[%clk 00:23:43]} {[%emt 00:00:34]} 28. Bf1 {[%clk
00:00:51]} {[%emt 00:00:16]} Qxg1+ {[%clk 00:24:06]} {[%emt 00:00:06]} 29. Kxg1
{[%clk 00:01:14]} {[%emt 00:00:07]} Nxf3+ {[%clk 00:24:32]} {[%emt 00:00:04]}
0-1